[Event "AUT Bundesliga 2024-25"]
[Site "Austria"]
[Date "2025.04.04"]
[Round "8.23"]
[White "Perunovic, Milos"]
[Black "Froewis, Georg"]
[Result "1-0"]
[Annotator "TA"]
[ECO "C18"]
[WhiteElo "2501"]
[BlackElo "2429"]
[PlyCount "77"]
[EventDate "2024.08.28"]
[EventType "team-tourn"]
[EventCountry "AUT"]
[SourceTitle "playchess.com"]
[Source "ChessBase"]
[SourceQuality "1"]
[TimeControl "40/5400+30:1800+30"]

{[%evp 13,77,2,36,0,0,-34,0,0,0,0,0,0,0,0,54,39,50,41,103,110,172,108,185,190,304,296,369,370,359,206,260,257,447,411,383,283,443,412,465,319,380,387,532,349,442,455,443,463,448,480,587,586,570,613,904,895,837,664,29990,29991,29991,29992,29992,29993,29993,29994]} 1. e4 {[%emt 0:00:08]} e6 {[%emt 0:00:04]} 2. d4 {[%emt 0:00:26]} d5 {[%emt 0:00:04]} 3. Nc3 {[%emt 0:00:22]} Bb4 {[%emt 0:00:16]} 4. e5 {[%emt 0:00:27]} Ne7 {[%emt 0:00:07]} 5. a3 {[%emt 0:00:49]} Bxc3+ {[%emt 0:00:04]} 6. bxc3 {[%emt 0:00:07]} c5 {[%emt 0:00:03]} 7. Qg4 {[%emt 0:03:42]} cxd4 {[%emt 0:00:07]} 8. Bd3 {[%emt 0:05:34] C18: French: 3 Nc3 Bb4: Main line: 7 h4 and 7 Qg4.} (8. Qxg7 $14 Rg8 9. Qxh7) 8... Qa5 $15 {[%emt 0:01:24]} 9. Rb1 $1 {[%emt 0:04:30]} (9. Qxg7 $2 Rg8 (9... Qxc3+ $2 10. Ke2 $19) 10. Qxh7 Qxc3+ (10... dxc3 11. Nf3 $16) 11. Ke2 Qxa1 $19) 9... Nbc6 {[%emt 0:03:49]} 10. Nf3 {[%emt 0:00:49] The position is equal.} (10. Qxg7 $6 Rg8 11. Qf6 (11. Qxh7 Nxe5 12. Bb5+ Bd7 $16) 11... Qxc3+ 12. Kf1 Ng6 $16) 10... Ng6 {[%emt 0:06:54]} 11. h4 {[%emt 0:02:01]} h5 {[%emt 0:03:20]} (11... Ncxe5 $2 12. Nxe5 Nxe5 13. Qxg7 Nxd3+ (13... Qxc3+ $2 14. Ke2 $18) 14. cxd3 $18) 12. Qg3 {[%emt 0:05:05]} Nce7 {[%emt 0:00:47]} 13. Bb5+ $5 $146 {[%emt 0:24:55][%mdl 8] New and interesting.} (13. Nxd4 $2 Qxc3+ 14. Bd2 Qxd4 $19) (13. Bxg6 Nxg6 14. Nxd4 a6 15. O-O Qc7 16. Re1 Bd7 17. Bg5 Rc8 18. Bd2 Kf8 19. f4 {0-1 Souza,M (2101)-Rocha,V (2035) Joao Pessoa op 6th 2015 (4)}) 13... Nc6 {[%emt 0:04:58]} ({Black should play} 13... Bd7 $11 14. Bd3 (14. Nxd4 Bxb5 15. Rxb5 Qc7 $11) (14. Bxd7+ Kxd7 15. Nxd4 b6 $11) 14... dxc3) 14. Nxd4 $14 {[%emt 0:10:45] A sharp opening} O-O {[%emt 0:20:14]} 15. O-O $1 {[%emt 0:10:22]} (15. Bxc6 bxc6 16. O-O c5 $11) 15... Qc7 {[%emt 0:17:17] Black is now going downhill.} (15... Ncxe5 $14 16. Re1 Ng4) 16. Re1 $1 $16 {[%emt 0:09:59] White is more active.} Nce7 {[%emt 0:07:33]} (16... a6 $16) 17. Bd3 {[%emt 0:05:07]} (17. Qg5 $18) 17... Qxc3 {[%emt 0:03:44] [#]} (17... Nf5 $16 18. Nxf5 exf5) 18. Bb2 $1 $18 {[%emt 0:00:22] White sacrificed a pawn} Qd2 {[%emt 0:02:55] [#]} (18... Qc7 $142 19. Qg5 Re8 20. Qxh5 Nf5) 19. Re3 $1 {[%emt 0:01:59] aiming for Nb3.} Nf5 {[%emt 0:03:02]} 20. Bxf5 {[%emt 0:05:17]} exf5 {[%emt 0:00:04]} 21. Bc3 {[%emt 0:00:13]} (21. Qg5 $142) 21... f4 {[%emt 0:00:37]} 22. Qg5 {[%emt 0:00:05]} (22. Bxd2 fxg3 23. Nb5 (23. fxg3 Re8 $15) (23. Rxg3 Nxe5 24. Bc1 b6 $15) 23... gxf2+ (23... Nxh4 24. Rxg3 Kh7 25. Rg5 $14) 24. Kxf2 Bf5 $17 (24... Nxh4 25. Nc7 $11)) 22... Qxd4 $2 {[%emt 0:02:58]} (22... fxe3 23. Bxd2 exd2 24. Qxh5 (24. Qxd2 Nxe5 25. Nb5 Bg4 $16) 24... Re8) 23. Bxd4 {[%emt 0:00:06]} fxe3 {[%emt 0:00:03]} 24. Bxe3 {[%emt 0:00:16]} (24. Qxh5 exf2+ 25. Bxf2 (25. Kxf2 Nf4 $18) 25... Be6 $18) (24. fxe3 Be6 25. Qxh5 (25. Rxb7 Rfb8 $18) 25... Rfc8 $18) 24... Be6 {[%emt 0:01:29] Black is weak on the dark squares} (24... Re8 $142 25. Bd4 (25. Qxh5 Rxe5 26. Qd1 Nxh4 $18) 25... Nf8 26. Qxh5 b6) 25. Rxb7 {[%emt 0:01:24]} ({But not} 25. Qxh5 Rfc8 26. Rxb7 Rc4 $18) 25... Rfc8 {[%emt 0:00:44][%cal Bf8c8,Bc8c2,Bc2c4][%mdl 32]} 26. Qxh5 {[%emt 0:02:01]} Rxc2 {[%emt 0:00:58]} 27. Qg5 {[%emt 0:00:25]} (27. Rxa7 Rxa7 28. Bxa7 Rc1+ 29. Kh2 Rc4 $18) 27... Rc4 {[%emt 0:03:23]} 28. Rb4 {[%emt 0:00:12]} (28. Bxa7 Rg4 29. Qc1 Nf4 $11) 28... Rac8 {[%emt 0:02:19]} 29. h5 {[%emt 0:01:06][%cal Bh4h5,Bh5h6,Bh6g7][%mdl 32]} (29. Bxa7 Nxh4 30. Rxc4 Rxc4 $16) 29... Nh4 {[%emt 0:01:00][%cal Bg6h4,Bh4f5,Bf5e3][%mdl 32]} 30. h6 {[%emt 0:02:09][%csl Gh6][%cal Rg5g7]} (30. Bxa7 Nf5 31. Rb8 Rxb8 32. Bxb8 Re4 $18) 30... Nf5 {[%emt 0:00:52]} 31. hxg7 {[%emt 0:00:20]} ({Less strong is} 31. Bxa7 Nxh6 32. Bb6 Rc1+ 33. Kh2 Ra1 $16) 31... Rxb4 {[%emt 0:00:57]} 32. axb4 {[%emt 0:00:01]} Rc4 {[%emt 0:00:52]} 33. Bc5 {[%emt 0:01:26]} a6 {[%emt 0:03:07]} 34. f3 {[%emt 0:01:35]} d4 {[%emt 0:08:17]} 35. g4 {[%emt 0:01:19] White threatens Qd8+ and mate.} Ne3 {[%emt 0:00:23]} 36. Qd8+ {[%emt 0:02:01] White mates.} Kxg7 {[%emt 0:00:06]} 37. Qg5+ {[%emt 0:00:13]} Kh7 {[%emt 0:00:04]} 38. Bf8 {[%emt 0:00:50][%csl Gf8][%cal Rg5g7]} Rc1+ {[%emt 0:00:08]} 39. Kh2 {[%emt 0:00:27] Weighted Error Value: White=0.34/Black=0.79  Mistake:       	White=2     	Black=7      Inaccurate:     	White=2     	Black=3      OK:         	White=9     	Black=6      Best:        	White=2     	Black=1      Strong:       	White=5     	---} 1-0

[Event "AUT Bundesliga 2024-25"]
[Site "Austria"]
[Date "2025.04.04"]
[Round "8.24"]
[White "Balint, Peter"]
[Black "Ivanisevic, Ivan"]
[Result "0-1"]
[Annotator "TA"]
[ECO "C63"]
[WhiteElo "2366"]
[BlackElo "2527"]
[PlyCount "176"]
[EventDate "2024.08.28"]
[EventType "team-tourn"]
[EventCountry "AUT"]
[SourceTitle "playchess.com"]
[Source "ChessBase"]
[SourceQuality "1"]
[TimeControl "40/5400+30:1800+30"]

{[%evp 19,176,14,19,12,22,16,14,29,26,-80,-86,-270,-22,-104,-100,-140,-137,-287,-297,-326,-337,-413,-404,-424,-267,-346,-349,-331,-329,-308,-64,-55,-56,-83,-53,-62,-70,-85,-81,-77,-78,-77,-41,-49,-32,-53,-49,-118,-114,-155,-94,-94,-82,-96,-60,-56,-61,-78,0,-72,-21,-21,-48,-29,-6,-9,-9,-54,-35,-30,0,-102,-91,-113,-77,-71,-71,-106,-113,-108,-108,-105,-113,-138,-135,-124,-106,-110,-106,-115,-95,-95,-95,-95,-95,-110,-110,-110,-102,-102,-47,-47,-47,-80,-80,-251,-97,-236,-26,-236,-97,-97,-97,-97,-97,-97,-97,-97,-97,-97,-97,-97,-97,-350,-321,-5702,-97,-97,-97,-5702,-5683,-5174,-5057,-2499,-1489,-771,-702,-29968,-29968,-29955,-29946,-29974,-29975,-29969,-29965,-29958,-29941,-12071,-12071,-8322,-8211,-8211,-8211,-7979,-7609,-7519,-5269,-5065,-883]} 1. e4 {[%emt 0:00:04]} e5 {[%emt 0:00:08]} 2. Nf3 {[%emt 0:00:06]} Nc6 {[%emt 0:00:14]} 3. Bb5 {[%emt 0:00:09]} f5 {[%emt 0:00:06]} 4. d3 {[%emt 0:00:09]} fxe4 {[%emt 0:00:09]} 5. dxe4 {[%emt 0:00:06]} Nf6 {[%emt 0:00:05]} 6. O-O {[%emt 0:00:26]} Bc5 {[%emt 0:00:06]} 7. Nc3 {[%emt 0:00:39]} d6 {[%emt 0:00:39]} 8. Be3 {[%emt 0:03:16]} Bxe3 {[%emt 0:04:04]} 9. fxe3 {[%emt 0:00:16]} O-O {[%emt 0:00:04]} 10. Bc4+ {[%emt 0:00:19]} Kh8 {[%emt 0:00:07]} 11. Ng5 {[%emt 0:00:09]} Qe8 $1 {[%emt 0:10:16]} 12. Nd5 {[%emt 0:01:36]} Qg6 {[%emt 0:01:12]} 13. h4 {[%emt 0:03:24]} Bg4 {[%emt 0:07:55]} 14. Qe1 {[%emt 0:15:06]} (14. Be2 $11 Nxd5 15. exd5 (15. Bxg4 $2 Nxe3 16. Rxf8+ Rxf8 $19) 15... Bxe2 16. Qxe2) 14... h6 $17 {[%emt 0:04:30]} (14... Nxe4 $2 15. Bd3 Rxf1+ 16. Qxf1 $18) 15. Qg3 $2 {[%emt 0:04:06]} (15. Nxf6 $17 gxf6 (15... Rxf6 16. Qg3 $11) 16. Ne6 Bxe6 17. Bxe6) 15... Bh5 $2 {[%emt 0:16:10]} (15... hxg5 16. Nxf6 Rxf6 17. Rxf6 Qxf6 18. Qxg4 gxh4 19. Rf1 $18) (15... Be6 $1 $19 16. Bd3 (16. Nxf6 $2 Bxc4 17. Nd5 Rxf1+ 18. Rxf1 Bxf1 $19) 16... Rac8 (16... hxg5 $2 17. Nxc7 Nh7 18. hxg5 $19)) 16. Nxc7 {[%emt 0:10:02]} (16. Nxf6 $2 gxf6 17. Nf7+ Kg7 (17... Rxf7 $2 18. Qxg6 Bxg6 19. Bxf7 $17) 18. Qxg6+ Bxg6 19. Nxh6 Kxh6 $19) (16. Qh3 $1 $11) 16... Rac8 $17 {[%emt 0:00:45]} (16... Nxe4 $2 17. Nxe4 Qxe4 18. Bd3 $18 (18. Nxa8 Rxa8 19. Bd3 Qd5 $18)) (16... hxg5 17. Nxa8 Rxa8 18. hxg5 $16) 17. Nce6 {[%emt 0:16:55]} Rfe8 $1 {[%emt 0:01:14]} (17... Nxe4 $2 18. Rxf8+ (18. Nxe4 Rxf1+ 19. Rxf1 Qxg3 $18) 18... Rxf8 19. Nxe4 $18 (19. Nxf8 Qxg5 20. Qxg5 hxg5 $18)) (17... hxg5 18. Nxf8 Rxf8 19. hxg5 $16) 18. Qh2 {[%emt 0:17:13]} (18. Rxf6 $2 gxf6 19. Rf1 fxg5 $19) (18. Qh3 $17 {was necessary.}) 18... Nd4 $19 {[%emt 0:12:50]} (18... hxg5 19. Nxg5 Nd8 (19... Nxe4 $2 20. Bf7 $18) 20. Bb3 $19) 19. exd4 {[%emt 0:15:30]} Rxc4 {[%emt 0:00:06]} 20. dxe5 {[%emt 0:00:05]} dxe5 {[%emt 0:02:13]} (20... hxg5 21. exf6 gxf6 (21... Rxe6 $2 22. f7 $18) 22. hxg5 Rxe6 23. gxf6 $11) (20... Nxe4 $2 21. Nf8 dxe5 22. Nxg6+ $18) 21. Rf5 {[%emt 0:08:40]} Bg4 {[%emt 0:17:16]} (21... Nxe4 22. Raf1 Nxg5 (22... hxg5 23. Rf8+ Rxf8 24. Rxf8+ Kh7 25. Qxe5 $11) 23. hxg5 $11) 22. Raf1 {[%emt 0:00:45]} (22. h5 Qxh5 (22... Nxh5 23. Nf7+ Kh7 24. Nxe5 $17) (22... Bxh5 $2 23. Raf1 $19) 23. Qxh5 Bxh5 $19) 22... Bxf5 {[%emt 0:00:57]} (22... hxg5 23. Rxf6 gxf6 24. Rxf6 Rxe6 (24... Qxf6 $2 25. hxg5+ Kg8 26. gxf6 $18) 25. Rxg6 Rxg6 26. hxg5+ Kg8 27. Qxe5 $15) (22... Rxc2 23. Nxg7 Bxf5 (23... Qxg7 24. Rxf6 hxg5 25. hxg5+ Kg8 26. Qh4 $11) 24. Nxe8 $11) 23. exf5 {[%emt 0:00:06]} Qh5 {[%emt 0:00:03]} 24. Qxe5 {[%emt 0:01:45]} Rxh4 $2 {[%emt 0:03:04]} (24... hxg5 25. hxg5 Re4 (25... Qxg5 26. Nxg5 Rxe5 27. Nf7+ Kg8 28. Nxe5 $11) 26. Qc7 R8xe6 27. fxe6 Qxg5 28. Qd8+ Kh7 29. Qd3 Qc5+ 30. Kh1 $19) (24... Rxc2 $19 {[%cal Oh5g4]} 25. Nh3 Qxh4) 25. Nh3 $15 {[%emt 0:00:06]} Rc4 {[%emt 0:06:23]} 26. Nhf4 {[%emt 0:00:44]} Qh2+ {[%emt 0:00:45]} 27. Kxh2 {[%emt 0:00:04]} Ng4+ {[%emt 0:00:03]} (27... Rxc2 $2 28. Qe1 $18 (28. Ng6+ Kg8 $18)) 28. Kg3 {[%emt 0:00:04]} Nxe5 {[%emt 0:00:05]} 29. Re1 {[%emt 0:00:07]} Nd7 {[%emt 0:00:28]} 30. c3 {[%emt 0:01:27]} Nf6 {[%emt 0:00:06]} 31. Kf3 {[%emt 0:00:11]} Kg8 {[%emt 0:01:18]} 32. Ng6 {[%emt 0:00:40]} Rc5 {[%emt 0:03:32]} 33. g4 {[%emt 0:00:34]} (33. Re5 $1 $15 Rxe5 34. Nxe5) 33... Rd5 {[%emt 0:00:32]} 34. Re2 {[%emt 0:00:22]} Rd3+ {[%emt 0:01:27]} (34... h5 $142 35. Rh2 Nxg4 (35... hxg4+ 36. Kf4 $16) 36. Rxh5 Nh6) 35. Kf4 $17 {[%emt 0:00:04]} Rd1 {[%emt 0:00:11]} 36. Ne5 {[%emt 0:00:24]} g5+ {[%emt 0:01:22]} 37. Kf3 {[%emt 0:00:20]} Rh1 {[%emt 0:01:04]} 38. Kg2 {[%emt 0:00:34]} Rd1 {[%emt 0:00:47]} 39. Kf3 $1 {[%emt 0:00:11]} h5 {[%emt 0:02:11]} (39... Rf1+ $17 40. Kg2 Rd1 41. Kf3) 40. gxh5 $1 $11 {[%emt 0:01:45]} Rf1+ {[%emt 0:00:54]} 41. Rf2 $1 {[%emt 0:04:04]} Rxf2+ {[%emt 0:08:07]} 42. Kxf2 {[%emt 0:28:57]} Nxh5 {[%emt 0:01:30]} 43. Kf3 {[%emt 0:00:00]} Ng7 {[%emt 0:06:29]} 44. Ng4 {[%emt 0:00:00]} Re7 {[%emt 0:01:39]} (44... Nxf5 45. Nf6+ Kf7 46. Nxe8 Kxe6 47. Kg4 $17) 45. Nxg5 {[%emt 0:00:00]} (45. Nf6+ $1 $11 Kf7 46. Nd5 Rxe6 47. fxe6+ Kxe6 48. Nc7+ Ke5 49. Kg4) 45... Nxf5 $17 {[%emt 0:00:40]} 46. Ne4 {[%emt 0:00:00]} Kg7 {[%emt 0:00:15]} 47. Kf4 {[%emt 0:00:00]} Nh4 {[%emt 0:00:33]} 48. Ne3 {[%emt 0:00:00]} Ng6+ {[%emt 0:00:59]} 49. Kf3 {[%emt 0:00:00]} Ne5+ {[%emt 0:00:04]} 50. Ke2 {[%emt 0:00:00]} Kg6 {[%emt 0:00:05]} 51. Nd5 {[%emt 0:00:17]} Rh7 {[%emt 0:00:19]} 52. Nf2 {[%emt 0:03:09]} Kg5 {[%emt 0:02:10]} 53. b3 {[%emt 0:00:35]} Rh2 {[%emt 0:02:52]} 54. Ke3 {[%emt 0:00:21]} Ng4+ {[%emt 0:02:09]} 55. Nxg4 {[%emt 0:00:06]} Kxg4 {[%emt 0:00:04]} 56. a4 {[%emt 0:00:13]} Kf5 {[%emt 0:00:15]} 57. Kd4 {[%emt 0:00:30]} Rd2+ {[%emt 0:01:00]} 58. Kc5 {[%emt 0:00:16]} Ke5 {[%emt 0:00:56]} 59. c4 {[%emt 0:00:40]} Rd3 {[%emt 0:01:16]} (59... Rg2 $17 60. Kb4 Kd6) 60. b4 $15 {[%emt 0:01:15]} Rg3 {[%emt 0:01:24]} 61. b5 {[%emt 0:01:02]} Rg8 {[%emt 0:00:47]} 62. b6 $2 {[%emt 0:00:03]} (62. Nc3 $17) 62... a6 $2 {[%emt 0:01:18]} (62... a5 $1 $19 63. Nc3 Rg6) 63. Nc7 {[%emt 0:00:43]} (63. a5 $17) 63... Rg5 $2 {[%emt 0:04:02]} ({Black should try} 63... Rg1 $1 $19 {[%cal Rg1a1]} 64. Nd5 Rg6) 64. Nd5 $2 {[%emt 0:01:03]} (64. a5 $11) 64... Ke6 {[%emt 0:01:42]} (64... Rg2 $19 {...a5 would now be deadly.} 65. Nb4 Rg3) 65. a5 $17 {[%emt 0:00:26]} Kd7 {[%emt 0:00:55]} 66. Kb4 {[%emt 0:00:07]} Kd6 {[%emt 0:00:24]} 67. Nc3 {[%emt 0:00:07]} Kc6 {[%emt 0:00:15]} 68. Ne4 {[%emt 0:00:40]} Rg1 {[%emt 0:00:12]} 69. Nc3 {[%emt 0:00:05]} Re1 {[%emt 0:00:10]} 70. Na4 {[%emt 0:00:19]} Kd6 {[%emt 0:01:29]} 71. Nc3 $2 {[%emt 0:01:08][%mdl 8192] [#]} (71. Nc5 $17) 71... Ke5 $1 $19 {[%emt 0:00:52]} 72. Na4 $2 {[%emt 0:01:21]} (72. Kc5) 72... Rb1+ $2 {[%emt 0:00:34]} (72... Kd4 $19 {is more deadly. ( -> ...Rb1+)} 73. Nc3 Re5) 73. Kc5 $17 {[%emt 0:00:21]} Ra1 {[%emt 0:02:02]} 74. Kb4 $2 {[%emt 0:00:04][%mdl 8192] [#]} (74. Nc3 $17) 74... Kd4 $1 $19 {[%emt 0:00:43]} 75. Nc3 {[%emt 0:00:50]} Re1 {[%emt 0:00:23]} 76. c5 {[%emt 0:00:29]} Re6 {[%emt 0:00:37]} 77. Na2 {[%emt 0:00:38]} Re2 {[%emt 0:00:47]} 78. c6 {[%emt 0:00:33]} bxc6 {[%emt 0:00:20]} (78... Rxa2 $2 {perishes.} 79. cxb7 Rb2+ 80. Ka3 $18) 79. Kb3 {[%emt 0:00:33]} c5 {[%emt 0:00:27]} 80. b7 {[%emt 0:00:14]} Re8 {[%emt 0:00:14]} 81. Nc3 {[%emt 0:00:09]} Rb8 {[%emt 0:00:37]} 82. Nb5+ {[%emt 0:00:07]} Ke5 {[%emt 0:01:13]} (82... axb5 83. a6 $18) 83. Nc3 {[%emt 0:00:37]} Rxb7+ {[%emt 0:00:12]} 84. Kc4 {[%emt 0:00:04]} Rc7 {[%emt 0:00:35]} 85. Nd5 {[%emt 0:00:07]} Rc6 {[%emt 0:00:14]} 86. Nc3 {[%emt 0:01:18]} Rc8 {[%emt 0:00:43]} 87. Nd5 {[%emt 0:00:07]} Kd6 {[%emt 0:00:27]} 88. Nf6 {[%emt 0:00:43]} Rf8 {[%emt 0:00:11]} 0-1

[Event "AUT Bundesliga 2024-25"]
[Site "Austria"]
[Date "2025.04.04"]
[Round "8.25"]
[White "Vogel, Roven"]
[Black "Vachier-Lagrave, Maxime"]
[Result "1/2-1/2"]
[Annotator "TA"]
[ECO "D85"]
[WhiteElo "2557"]
[BlackElo "2722"]
[PlyCount "55"]
[EventDate "2024.08.28"]
[EventType "team-tourn"]
[EventCountry "AUT"]
[SourceTitle "playchess.com"]
[Source "ChessBase"]
[SourceQuality "1"]
[TimeControl "40/5400+30:1800+30"]

{[%evp 23,55,4,27,0,0,0,2,0,0,0,7,0,0,0,0,0,0,0,0,-20,0,0,0,0,0,0,0,0,0,0,0,0,0,0]} 1. d4 {[%emt 0:00:04]} Nf6 {[%emt 0:00:03]} 2. c4 {[%emt 0:00:08]} g6 {[%emt 0:00:02]} 3. Nc3 {[%emt 0:00:11]} d5 {[%emt 0:00:03]} 4. cxd5 {[%emt 0:00:09]} Nxd5 {[%emt 0:00:03]} 5. e4 {[%emt 0:00:08]} Nxc3 {[%emt 0:00:02]} 6. bxc3 {[%emt 0:00:07]} Bg7 {[%emt 0:00:02]} 7. Nf3 {[%emt 0:00:11]} c5 {[%emt 0:00:03]} 8. Rb1 {[%emt 0:00:12]} O-O {[%emt 0:00:18]} 9. Be2 {[%emt 0:00:06]} cxd4 {[%emt 0:01:40]} 10. cxd4 {[%emt 0:00:17]} Qa5+ {[%emt 0:00:02]} 11. Bd2 {[%emt 0:00:10]} Qxa2 {[%emt 0:00:03]} 12. O-O {[%emt 0:00:10]} Bg4 {[%emt 0:00:02]} 13. Rxb7 {[%emt 0:01:19] D85: Exchange Grünfeld: Unusual White 7th moves and lines with 7 Nf3.} Bxf3 {[%emt 0:00:07] The position is equal.} 14. Bxf3 {[%emt 0:00:05] [#]} Bxd4 {[%emt 0:00:03]} 15. e5 {[%emt 0:02:18] 15.Bb4 is vanishing.} Na6 $1 {[%emt 0:00:06][%cal Bb8a6,Ba6c5,Bc5d3,Bd3e1][%mdl 32]} 16. Rxe7 {[%emt 0:00:07]} Rad8 {[%emt 0:00:29] [#]} 17. e6 $1 {[%emt 0:01:48]} fxe6 {[%emt 0:00:08] ...Bc5 is the strong threat.} 18. Qe1 {[%emt 0:00:58][%cal Od2c3]} Nc5 {[%emt 0:01:20]} 19. Bc3 {[%emt 0:00:07] Black must now prevent Bxd4.} Nd3 $146 {[%emt 0:00:54]} (19... Qc4 20. Bxd4 Qxd4 21. Rxa7 e5 22. Qc1 Ne6 23. Rb7 e4 24. Bg4 Nc5 25. Rc7 Rxf2 26. Rxf2 {1-0 Matthiesen,M (2263)-Thogersen,R (2380) Aarhus-chA 2023 (2)}) 20. Bxd4 $1 {[%emt 0:00:06] A strong pair of Bishops.} Nxe1 {[%emt 0:00:03] Successful Defense Black} 21. Rg7+ {[%emt 0:00:07]} Kh8 {[%emt 0:00:01]} 22. Rd7+ {[%emt 0:00:08]} (22. Rxa7+ Rxd4 23. Rxa2 Nxf3+ 24. gxf3 Rxf3) 22... Kg8 {[%emt 0:00:02]} (22... e5 $2 23. Bxe5+ $18) 23. Rg7+ $5 {[%emt 0:00:07][%mdl 4] Exploring less charted territory.} Kh8 {[%emt 0:00:02]} 24. Rd7+ {[%emt 0:00:06]} (24. Rxa7+ Rxd4 25. Rxa2 Nxf3+ 26. gxf3 Rxf3) 24... Kg8 {[%emt 0:00:02]} (24... e5 $2 25. Bxe5+ $18) 25. Rg7+ {[%emt 0:00:06]} Kh8 {[%emt 0:00:04]} 26. Rd7+ {[%emt 0:00:04]} (26. Rxa7+ Rxd4 27. Rxa2 Nxf3+ 28. gxf3 Re8 $15) 26... Kg8 {[%emt 0:00:05]} ({But not} 26... e5 $2 27. Bxe5+ $18) 27. Rg7+ {[%emt 0:00:04]} Kh8 {[%emt 0:00:05]} 28. Rd7+ {[%emt 0:00:03] Not much happened in this game.   Weighted Error Value: White=0.03 (flawless) /Black=0.02 (flawless)   OK:         	White=4     	Black=6      Best:        	White=5     	Black=4      Strong:       	White=1     	Black=1} (28. Rxa7+ Rxd4 29. Rxa2 Nxf3+ 30. gxf3 Rxf3) 1/2-1/2

[Event "AUT Bundesliga 2024-25"]
[Site "Austria"]
[Date "2025.04.04"]
[Round "8.26"]
[White "Mamedyarov, Shakhriyar"]
[Black "Lanka, Zigurds"]
[Result "1-0"]
[Annotator "TA"]
[ECO "E63"]
[WhiteElo "2748"]
[BlackElo "2326"]
[PlyCount "83"]
[EventDate "2024.08.28"]
[EventType "team-tourn"]
[EventCountry "AUT"]
[SourceTitle "playchess.com"]
[Source "ChessBase"]
[SourceQuality "1"]
[TimeControl "40/5400+30:1800+30"]

{[%evp 14,83,29,21,50,42,43,61,58,45,73,65,74,68,74,80,90,83,66,61,62,58,68,74,127,54,66,62,57,62,69,70,71,66,76,59,48,49,93,95,140,153,219,148,149,147,150,144,143,143,140,150,146,150,147,147,153,150,149,155,171,151,184,164,256,256,279,245,286,277,323,321]} 1. d4 {[%emt 0:00:03]} Nf6 {[%emt 0:00:10]} 2. c4 {[%emt 0:00:06]} g6 {[%emt 0:00:09]} 3. g3 {[%emt 0:00:29]} Bg7 {[%emt 0:00:40]} 4. Bg2 {[%emt 0:00:04]} O-O {[%emt 0:00:22]} 5. Nc3 {[%emt 0:00:14]} d6 {[%emt 0:00:10]} 6. Nf3 {[%emt 0:00:10]} a6 {[%emt 0:00:20]} 7. O-O {[%emt 0:00:16]} Nc6 {[%emt 0:00:09]} 8. Bf4 {[%emt 0:00:20]} Nh5 {[%emt 0:02:34] E63: King's Indian: Fianchetto: Panno Variation with 7...a6.} 9. Be3 {[%emt 0:00:29]} f5 {[%emt 0:01:46]} 10. d5 {[%emt 0:00:13]} Ne5 {[%emt 0:01:32] White is slightly better.} 11. c5 $146 {[%emt 0:00:13]} (11. Nxe5 dxe5 12. c5 e4 13. Qb3 Kh8 14. Rad1 Qe8 15. Bc1 Rb8 16. f3 e5 17. Qc2 {1-0 Krzyzanowski,M (2509)-Taylor,A (2398) Budapest Spring op 2019 (7)}) 11... Nf7 {[%emt 0:07:51][%cal Of5f4]} 12. Rc1 {[%emt 0:01:24]} Bd7 {[%emt 0:17:41][%cal Of5f4]} 13. b4 {[%emt 0:03:47]} Nf6 {[%emt 0:02:27]} 14. h3 {[%emt 0:05:59]} (14. Nd4 {feels hotter.} Ng4 15. Bf4 g5 16. Ne6) 14... c6 {[%emt 0:04:55]} 15. cxd6 {[%emt 0:04:08]} exd6 {[%emt 0:02:39]} 16. Nd4 {[%emt 0:01:33][%cal Rd5c6]} Qe8 {[%emt 0:00:45]} 17. Qb3 {[%emt 0:03:27]} Kh8 {[%emt 0:00:40]} 18. Rfd1 {[%emt 0:03:11]} cxd5 {[%emt 0:06:38]} (18... Ne5 $142) 19. Nxd5 {[%emt 0:01:54]} (19. b5 $16) 19... Ba4 $14 {[%emt 0:06:18]} 20. Nxf6 {[%emt 0:00:14]} Bxf6 {[%emt 0:00:12] [#]} 21. Qe6 {[%emt 0:00:03]} Ng5 $1 {[%emt 0:05:51]} (21... Qxe6 22. Nxe6 Bxd1 23. Nxf8 (23. Rxd1 Rfe8 $11) 23... Bxe2 24. Nd7 $18 (24. Bxb7 $2 Rxf8 25. Rc7 g5 $19)) 22. Qxe8 {[%emt 0:00:33]} (22. Qxd6 Bxd1 23. Rxd1 Rd8 $11) 22... Raxe8 {[%emt 0:00:18]} 23. Nb3 {[%emt 0:00:55]} Ne4 {[%emt 0:01:45]} 24. Bxe4 {[%emt 0:03:14]} Rxe4 {[%emt 0:01:19]} 25. Rxd6 {[%emt 0:00:06] Hoping for Nc5.} Be7 {[%emt 0:08:03]} 26. Rd4 {[%emt 0:06:59]} Re6 {[%emt 0:02:18] [#]} 27. Rc7 $1 {[%emt 0:03:05]} g5 {[%emt 0:04:27]} (27... Rb8 $16 28. Nc5 Bxc5 29. bxc5 Bc6) 28. Nc5 {[%emt 0:07:32]} Bxc5 {[%emt 0:00:11]} 29. bxc5 {[%emt 0:00:03]} Bc6 {[%emt 0:01:59][%cal Of5f4]} 30. Rd6 {[%emt 0:00:06] White threatens Bd4+ and mate. White has more active pieces.} Rfe8 {[%emt 0:03:10][%cal Of5f4]} 31. Bd4+ {[%emt 0:00:14]} Kg8 {[%emt 0:00:06]} 32. Rg7+ {[%emt 0:00:05]} Kf8 {[%emt 0:00:07]} 33. e3 $36 {[%emt 0:00:08][%mdl 2048] White is in control.} ({But not} 33. Rxh7 $6 Rxe2 34. Rh8+ Kf7 35. Rf6+ Ke7 36. Rxe8+ (36. Rxf5 $2 {is a self mate.} Re1+ 37. Kh2 Rh1#) (36. Rh7+ Kd8 $11) 36... Kxe8 $16) 33... h6 {[%emt 0:00:25]} 34. Rh7 {[%emt 0:00:11]} f4 {[%emt 0:01:21]} 35. Rxh6 {[%emt 0:00:49]} Rxh6 {[%emt 0:00:16]} 36. Rxh6 {[%emt 0:00:04]} fxg3 {[%emt 0:00:08]} 37. fxg3 $16 {[%emt 0:00:03][%cal Bf2g3,Bg3g4][%mdl 32] KRB-KRB. White is two pawns up.} Bd5 {[%emt 0:01:36]} 38. a3 {[%emt 0:00:27]} Bf7 {[%emt 0:02:12]} (38... Be4 $142 39. Rh5 g4 40. hxg4 Kf7) 39. g4 $18 {[%emt 0:00:23]} Rd8 {[%emt 0:00:34]} 40. Kf2 {[%emt 0:00:24]} Rd5 {[%emt 0:00:34]} 41. Ke2 {[%emt 0:30:18]} Ke8 {[%emt 0:30:45]} 42. Kd3 {[%emt 0:00:17] Weighted Error Value: White=0.08 (flawless) /Black=0.19 (very precise)   Mistake:       	White=1     	Black=3      Inaccurate:     	White=1     	Black=3      OK:         	White=19    	Black=6      Best:        	White=1     	Black=4      Strong:       	---       	Black=1} 1-0